bitfinex/quotes_SOLUSD_20241117
["timestamp","ask_amount","ask_price","bid_price","bid_amount"]
[1731810151860,40.77071602,214.3,214.21,40.77071602]
[1731810152060,4.6661,214.31,214.23,40.77071602]
[1731810152559,15.7726,214.34,214.29,40.77071602]
[1731810152560,15.6726,214.34,214.29,40.77071602]
[1731810152859,15.6726,214.34,214.33,40.77071602]
[1731810153061,15.1582,214.4,214.34,0.12549]
[1731810153414,19.8225,214.4,214.33,40.77071602]
[1731810153886,40.77071602,214.34,214.25,40.77071602]
[1731810154065,40.77071602,214.34,214.26,0.12549]
[1731810154274,40.77071602,214.38,214.29,40.77071602]
[1731810154668,40.77071602,214.38,214.31,40.77071602]
[1731810155070,60.59321602,214.4,214.32,23.902374]
[1731810155380,15.1582,214.4,214.39,64.67309002]
[1731810156591,21.6333,214.49,214.39,84.79858002]
[1731810156797,21.6333,214.49,214.43,40.77071602]
[1731810156964,21.6333,214.49,214.44,23.776884]
[1731810157880,4.6624,214.48,214.42,23.776884]
[1731810158092,21.6333,214.49,214.44,23.776884]
[1731810158296,26.2956,214.49,214.41,40.77071602]
[1731810158484,26.2956,214.49,214.44,23.776884]
[1731810159699,26.2956,214.49,214.42,23.776884]
[1731810161381,26.2956,214.49,214.44,23.776884]
[1731810162893,21.6333,214.49,214.45,40.77071602]
[1731810163101,15.1582,214.49,214.46,23.776884]
[1731810163303,19.8206,214.49,214.41,40.77071602]
[1731810163596,19.8206,214.49,214.43,40.77071602]
[1731810163802,15.1582,214.49,214.45,40.77071602]
[1731810163981,15.1582,214.49,214.46,23.776884]
[1731810164380,15.1582,214.49,214.46,23.902374]
[1731810164679,27.3756,214.55,214.48,23.902374]
[1731810164887,27.3756,214.55,214.5,23.776884]
[1731810165081,16.0677,214.55,214.54,23.776884]
[1731810165284,4.6601,214.59,214.54,23.776884]
[1731810165789,27.3742,214.61,214.55,40.77071602]
[1731810165992,27.3742,214.61,214.56,23.776884]
[1731810166681,22.7145,214.61,214.57,0.12549]
[1731810166900,27.3741,214.61,214.56,23.776884]
[1731810167204,27.3741,214.61,214.53,40.77071602]
[1731810167511,40.77071602,214.56,214.47,40.77071602]
[1731810167674,40.77071602,214.54,214.45,40.77071602]
[1731810168004,40.77071602,214.56,214.46,40.77071602]
[1731810168314,40.77071602,214.51,214.44,40.77071602]
[1731810168481,40.77071602,214.53,214.43,40.77071602]
[1731810168678,40.77071602,214.53,214.45,40.77071602]
[1731810168976,4.6615,214.52,214.45,40.77071602]
[1731810169875,4.6615,214.52,214.46,23.902374]
[1731810170076,40.77071602,214.55,214.46,23.902374]
[1731810170283,4.6611,214.54,214.46,23.902374]
[1731810170606,40.77071602,214.53,214.46,23.902374]
[1731810171095,40.77071602,214.51,214.44,23.776884]
[1731810171600,21.8148,214.48,214.39,40.77071602]
[1731810171804,40.77071602,214.45,214.35,40.77071602]
[1731810171986,40.77071602,214.43,214.35,40.77071602]
[1731810172306,4.6637,214.42,214.35,40.77071602]
[1731810173414,4.6637,214.42,214.31,4.666]
[1731810173415,40.77071602,214.37,214.23,4.6677]
[1731810173606,40.77071602,214.35,214.25,40.77071602]
[1731810174076,40.77071602,214.35,214.23,4.6677]
[1731810174077,6.2094,214.36,214.27,40.77071602]
[1731810174277,45.43591602,214.35,214.27,40.77071602]
[1731810174876,4.6652,214.35,214.29,40.77071602]
[1731810175284,45.43591602,214.35,214.27,40.77071602]
[1731810175703,4.6652,214.35,214.27,40.77071602]
[1731810176301,4.6652,214.35,214.29,40.77071602]
[1731810176600,4.6652,214.35,214.3,23.776884]
[1731810176790,4.6652,214.35,214.27,40.77071602]
[1731810176986,4.6652,214.35,214.28,23.776884]
[1731810177378,45.43591602,214.35,214.28,23.776884]
[1731810178001,4.6652,214.35,214.29,40.77071602]
[1731810178284,6.2094,214.36,214.33,23.776884]
[1731810179605,6.2094,214.36,214.35,23.776884]
[1731810179817,6.2094,214.36,214.32,40.77071602]
[1731810179997,10.8745,214.36,214.28,40.77071602]
[1731810180319,51.64521602,214.36,214.28,40.77071602]
[1731810180493,51.64521602,214.36,214.26,40.77071602]
[1731810180693,6.2094,214.36,214.32,40.77071602]
[1731810180896,6.2094,214.36,214.34,40.77071602]
[1731810181197,6.2094,214.36,214.32,40.77071602]
[1731810181621,6.2094,214.36,214.33,23.776884]
[1731810181809,16.5591,214.38,214.36,0.12549]
[1731810181994,16.5591,214.38,214.37,64.67309002]
[1731810182310,6.2094,214.42,214.38,23.776884]
[1731810182514,6.2094,214.42,214.37,40.77071602]
[1731810182808,10.8733,214.42,214.35,40.77071602]
[1731810183020,51.64401602,214.42,214.34,23.776884]
[1731810183522,40.77071602,214.4,214.33,40.77071602]
[1731810183895,51.64401602,214.42,214.33,40.77071602]
[1731810184701,10.8733,214.42,214.37,40.77071602]
[1731810185014,16.5591,214.44,214.4,23.776884]
[1731810185320,16.5591,214.44,214.41,40.77071602]
[1731810186318,6.1607,214.48,214.43,40.89620602]
[1731810186612,6.1607,214.48,214.47,23.776884]
[1731810186800,10.8231,214.48,214.42,40.89620602]
[1731810187002,16.4743,214.5,214.46,40.77071602]
[1731810187608,6.1607,214.55,214.48,40.77071602]
[1731810187808,4.6611,214.54,214.49,23.776884]
[1731810188005,6.1607,214.55,214.5,40.77071602]
[1731810188308,6.1607,214.55,214.54,40.77071602]
[1731810188702,4.6603,214.58,214.54,40.77071602]
[1731810188907,4.6588,214.65,214.57,23.902374]
[1731810189218,4.6588,214.65,214.59,40.77071602]
[1731810189606,4.6588,214.65,214.61,40.77071602]
[1731810189795,4.6588,214.65,214.59,40.77071602]
[1731810190000,40.77071602,214.62,214.53,40.77071602]
[1731810190231,4.6588,214.65,214.57,40.77071602]
[1731810190536,4.6588,214.65,214.59,40.77071602]
[1731810191225,4.6584,214.67,214.6,23.902374]
[1731810191530,41.29449652,214.72,214.63,40.77071602]
[1731810191739,4.6574,214.71,214.66,23.776884]
[1731810192018,4.6574,214.71,214.63,40.77071602]
[1731810192232,4.6574,214.71,214.65,40.77071602]
[1731810192610,4.6574,214.71,214.66,23.776884]
[1731810192928,4.6574,214.71,214.64,23.776884]
[1731810193118,4.6574,214.71,214.65,40.77071602]
[1731810193901,4.6574,214.71,214.63,40.77071602]
[1731810194129,40.77071602,214.7,214.62,23.776884]
[1731810194804,40.77071602,214.64,214.55,40.77071602]
[1731810195009,4.6591,214.63,214.55,40.77071602]
[1731810195501,20.0,214.61,214.53,40.77071602]
[1731810195722,6.5986,214.62,214.55,40.77071602]
[1731810196102,6.5986,214.62,214.57,40.77071602]
[1731810196523,6.5986,214.62,214.55,40.77071602]
[1731810196901,24.6598,214.6,214.53,40.77071602]
[1731810197227,65.43051602,214.6,214.51,40.77071602]
[1731810197742,20.0,214.57,214.51,40.77071602]
[1731810198100,4.6607,214.56,214.51,40.77071602]
[1731810198409,4.6607,214.56,214.49,40.77071602]
[1731810198615,40.77071602,214.54,214.45,40.77071602]
[1731810198806,20.0,214.53,214.45,40.77071602]
[1731810198999,40.77071602,214.52,214.43,40.77071602]
[1731810199410,40.77071602,214.52,214.45,40.77071602]
[1731810199739,20.0,214.51,214.43,40.77071602]
[1731810199900,40.77071602,214.52,214.43,40.77071602]
[1731810200105,4.6617,214.51,214.44,23.776884]
[1731810201021,4.6617,214.51,214.45,40.77071602]
[1731810201226,4.6609,214.55,214.47,40.77071602]
[1731810201442,4.6609,214.55,214.49,40.77071602]
[1731810201610,4.6609,214.55,214.5,23.776884]
[1731810202013,4.6609,214.55,214.49,40.77071602]
[1731810202402,4.6603,214.58,214.53,40.77071602]
[1731810202604,4.6603,214.58,214.55,40.77071602]
[1731810203023,16.0073,214.61,214.57,40.77071602]
[1731810203541,16.0073,214.61,214.58,23.776884]
[1731810203707,16.0073,214.61,214.59,40.77071602]
[1731810203908,16.0073,214.61,214.58,23.776884]
[1731810205959,20.0,214.59,214.51,40.77071602]
[1731810206139,40.77071602,214.58,214.49,40.77071602]
[1731810206742,20.0,214.57,214.49,40.77071602]
[1731810207032,4.6609,214.55,214.47,40.77071602]
[1731810208129,4.6609,214.55,214.48,23.776884]
[1731810208530,4.6609,214.55,214.5,23.776884]
[1731810208911,4.6609,214.55,214.49,40.89620602]
[1731810208912,24.66,214.59,214.53,40.77071602]
[1731810209228,4.66,214.59,214.53,40.77071602]
[1731810211326,40.77071602,214.56,214.47,40.77071602]
[1731810211548,40.77071602,214.54,214.45,40.77071602]
[1731810211839,6.6273,214.45,214.3,4.6663]
[1731810212039,6.6273,214.45,214.36,40.77071602]
[1731810212416,4.6633,214.44,214.38,40.77071602]
[1731810213017,6.6273,214.45,214.38,40.77071602]
[1731810213217,6.6273,214.45,214.41,0.12549]
[1731810213727,11.2905,214.45,214.4,40.77071602]
[1731810213927,11.2905,214.45,214.38,40.77071602]
[1731810214532,40.77071602,214.42,214.34,40.77071602]
[1731810214828,40.77071602,214.4,214.32,40.77071602]
[1731810215036,40.77071602,214.38,214.28,57.10401602]
[1731810215339,20.0,214.37,214.3,40.77071602]
[1731810215523,40.77071602,214.36,214.28,40.77071602]
[1731810215843,40.77071602,214.32,214.24,40.77071602]
[1731810216038,40.77071602,214.3,214.18,11.6722]
[1731810216216,40.77071602,214.28,214.2,40.77071602]
[1731810216417,6.6273,214.3,214.26,40.77071602]
[1731810216418,20.0,214.29,214.26,40.77071602]
[1731810216731,20.6885,214.36,214.28,40.77071602]
[1731810216919,40.77071602,214.32,214.23,40.77071602]
[1731810217719,40.77071602,214.3,214.21,40.77071602]
[1731810217926,40.77071602,214.32,214.23,40.77071602]
[1731810218117,20.0,214.35,214.27,40.77071602]
[1731810218427,45.43611602,214.34,214.25,40.77071602]
[1731810218631,40.77071602,214.3,214.21,40.77071602]
[1731810219030,40.77071602,214.28,214.19,40.77071602]
[1731810219233,20.0,214.27,214.19,40.77071602]
[1731810219739,20.0,214.27,214.24,40.77071602]
[1731810220223,0.22549,214.31,214.24,40.77071602]
[1731810220425,4.7665,214.29,214.22,40.77071602]
[1731810220649,20.1,214.27,214.2,40.77071602]
[1731810220824,20.2,214.25,214.18,40.77071602]
[1731810221030,20.2,214.25,214.16,40.77071602]
[1731810221031,0.22549,214.22,214.16,40.77071602]
[1731810221651,20.22549,214.22,214.13,40.77071602]
[1731810221849,0.2,214.18,214.13,40.77071602]
[1731810222053,20.0,214.16,214.13,40.77071602]
[1731810222546,24.6694,214.16,214.13,40.77071602]
[1731810222923,24.7694,214.16,214.03,4.6721]
[1731810223119,24.6694,214.16,214.1,40.77071602]
[1731810223325,0.12549,214.15,214.08,40.77071602]
[1731810223525,0.1,214.13,214.08,40.77071602]
[1731810223751,20.0,214.14,214.08,40.77071602]
[1731810224351,0.12549,214.15,214.08,40.77071602]
[1731810224645,4.6698,214.14,214.1,40.77071602]
[1731810225232,20.0,214.16,214.12,40.77071602]
[1731810225630,20.0,214.16,214.04,0.09367462]
[1731810225631,20.0,214.16,214.14,40.77071602]
[1731810226528,24.6695,214.16,214.14,40.77071602]
[1731810226730,16.0234,214.17,214.14,40.77071602]
[1731810226939,16.0234,214.17,214.16,40.77071602]
[1731810227153,6.6273,214.21,214.17,23.902374]
[1731810227359,6.6273,214.21,214.2,40.77071602]
[1731810227521,6.6273,214.21,214.18,40.77071602]
[1731810227856,16.6568,214.24,214.21,0.12549]
[1731810228027,16.6568,214.24,214.23,40.77071602]
[1731810228228,6.3038,214.3,214.24,23.902374]
[1731810228571,16.0262,214.31,214.24,23.902374]
[1731810228572,16.0262,214.31,214.29,45.43711602]
[1731810228730,6.3038,214.37,214.3,23.776884]
[1731810229048,6.3038,214.37,214.32,40.77071602]
[1731810229260,0.1,214.36,214.27,40.77071602]
[1731810229441,51.73941602,214.37,214.29,40.77071602]
[1731810229947,47.07451602,214.37,214.29,40.77071602]
[1731810230124,6.3038,214.37,214.31,40.77071602]
[1731810231038,40.77071602,214.35,214.25,40.77071602]
[1731810231235,40.87071602,214.33,214.24,11.669]
[1731810231441,40.77071602,214.33,214.25,40.77071602]
[1731810231760,20.0,214.32,214.25,40.77071602]
[1731810231937,20.0,214.3,214.21,40.77071602]
[1731810232127,40.77071602,214.25,214.17,40.77071602]
[1731810232331,20.0,214.24,214.15,40.77071602]
[1731810232530,16.0262,214.23,214.15,40.77071602]
[1731810232761,4.6683,214.21,214.15,40.77071602]
[1731810232963,20.0,214.2,214.16,40.77071602]
[1731810233138,20.0,214.2,214.14,40.77071602]
[1731810235629,4.6687,214.19,214.14,40.77071602]
[1731810235833,4.6687,214.19,214.12,40.77071602]
[1731810236230,4.6687,214.19,214.1,40.77071602]
[1731810236231,45.43941602,214.19,214.1,40.77071602]
[1731810236460,20.0,214.18,214.1,40.77071602]
[1731810237158,20.0,214.2,214.12,40.77071602]
[1731810237467,40.77071602,214.17,214.08,40.77071602]
[1731810237847,4.6696,214.15,214.08,40.77071602]
[1731810238159,40.77071602,214.15,214.06,40.77071602]
[1731810238365,40.77071602,214.13,214.02,11.6809]
[1731810238540,40.77071602,214.11,214.03,40.77071602]
[1731810238864,40.77071602,214.13,214.03,40.77071602]
[1731810239040,40.77071602,214.13,214.05,40.77071602]
[1731810239438,40.77071602,214.15,214.07,40.77071602]
[1731810239640,45.43941602,214.19,214.09,40.77071602]
[1731810239851,4.6687,214.19,214.13,40.77071602]
[1731810240379,4.6687,214.19,214.11,40.77071602]
[1731810241471,51.60371602,214.21,214.11,45.44111602]
[1731810241766,40.77071602,214.19,214.11,40.77071602]
[1731810241975,40.77071602,214.19,214.09,40.77071602]
[1731810242270,40.77071602,214.13,214.05,40.77071602]
[1731810242459,40.77071602,214.13,214.03,40.77071602]
[1731810242672,40.77071602,214.13,214.05,40.77071602]
[1731810243048,4.6702,214.12,214.05,40.77071602]
[1731810244346,49.18637913,214.2,214.05,40.77071602]
[1731810244347,4.6699,214.14,214.06,23.776884]
[1731810244579,4.6699,214.14,214.09,40.77071602]
[1731810244873,4.6699,214.14,213.87,8.23719018]
[1731810244874,4.6699,214.14,214.07,40.77071602]
[1731810245376,4.6699,214.14,214.05,40.77071602]
[1731810246075,4.6694,214.16,214.11,40.77071602]
[1731810246249,46.93541602,214.21,214.12,23.776884]
[1731810246670,46.93541602,214.21,214.13,40.77071602]
[1731810246875,46.93541602,214.21,214.17,40.77071602]
[1731810246876,6.1647,214.21,214.17,40.77071602]
[1731810247054,6.1647,214.21,214.19,40.77071602]
[1731810247563,16.0262,214.23,214.2,23.776884]
[1731810247767,16.0262,214.23,214.21,40.77071602]
[1731810248069,6.6061,214.27,214.21,40.77071602]
[1731810248277,40.77071602,214.25,214.17,40.77071602]
[1731810248447,40.77071602,214.2,214.12,23.776884]
[1731810248973,40.77071602,214.26,214.17,40.77071602]
[1731810249184,4.6674,214.25,214.17,45.43981602]
[1731810249472,40.77071602,214.24,214.16,23.776884]
[1731810249671,4.6674,214.25,214.17,40.77071602]
[1731810250066,11.2731,214.27,214.2,23.776884]
[1731810250270,11.2731,214.27,214.21,40.77071602]
[1731810250659,6.6061,214.27,214.21,40.77071602]
[1731810250964,6.6061,214.27,214.22,23.776884]
[1731810252077,40.77071602,214.24,214.12,40.77071602]
[1731810252270,40.77071602,214.2,214.12,40.77071602]
[1731810252468,40.77071602,214.22,214.12,40.77071602]
[1731810252675,40.77071602,214.24,214.16,40.77071602]
[1731810252983,6.6061,214.27,214.22,40.77071602]
[1731810253354,6.6061,214.27,214.23,23.776884]
[1731810254077,16.1122,214.31,214.25,23.776884]
[1731810254384,16.1122,214.31,214.26,40.98988064]
[1731810254590,15.0824,214.39,214.3,40.77071602]
[1731810254756,15.0824,214.39,214.32,40.77071602]
[1731810254960,15.0824,214.39,214.33,23.776884]
[1731810255174,60.51751602,214.39,214.3,40.77071602]
[1731810255362,60.51751602,214.39,214.29,23.776884]
[1731810255982,60.51751602,214.39,214.28,40.77071602]
[1731810256285,40.77071602,214.29,214.18,40.77071602]
[1731810256466,40.77071602,214.25,214.16,40.77071602]
[1731810256666,62.47191602,214.25,214.16,40.77071602]
[1731810256968,40.77071602,214.23,214.14,40.77071602]
[1731810257187,45.43921602,214.21,214.12,40.77071602]
[1731810257363,45.43921602,214.21,214.12,45.44081602]
[1731810257968,45.43851602,214.23,214.14,40.77071602]
[1731810258877,4.6678,214.23,214.14,40.77071602]
[1731810259084,67.13941602,214.25,214.16,40.77071602]
[1731810259257,21.7012,214.25,214.2,40.77071602]
[1731810259874,21.7012,214.25,214.22,40.77071602]
[1731810260388,21.7012,214.25,214.18,40.77071602]
[1731810260590,21.7012,214.25,214.16,64.54760002]
[1731810260767,67.13941602,214.25,214.16,40.77071602]
[1731810261082,67.13941602,214.25,214.17,23.776884]
[1731810262592,26.3687,214.25,214.18,40.77071602]
[1731810262761,21.7012,214.25,214.2,40.77071602]
[1731810262960,40.77071602,214.31,214.22,40.77071602]
[1731810263175,21.9873,214.32,214.27,40.77071602]
[1731810263585,21.9873,214.32,214.2,41.21537064]
[1731810263586,62.75801602,214.32,214.2,20.25098]
[1731810263773,21.9873,214.32,214.29,40.77071602]
[1731810264167,26.6533,214.32,214.25,40.77071602]
[1731810264496,26.6533,214.32,214.18,16.3412]
[1731810264497,40.77071602,214.31,214.23,23.776884]
[1731810264684,4.6663,214.3,214.23,23.776884]
[1731810264859,21.9873,214.32,214.24,40.77071602]
[1731810265062,21.9873,214.32,214.23,28.444584]
[1731810265063,21.9873,214.32,214.26,40.77071602]
[1731810266497,21.9873,214.32,214.28,40.77071602]
[1731810266787,21.9873,214.32,214.26,52.43871602]
[1731810267290,26.6533,214.32,214.26,52.43871602]
[1731810267468,21.9873,214.32,214.3,40.77071602]
[1731810267674,15.71,214.32,214.3,40.77071602]
[1731810268071,15.71,214.32,214.26,40.77071602]
[1731810268282,15.71,214.32,214.25,4.6673]
[1731810268682,20.376,214.32,214.25,4.6673]
[1731810269081,61.14671602,214.32,214.23,4.6677]
[1731810269282,40.77071602,214.3,214.22,11.6702]
[1731810269670,61.14671602,214.32,214.22,57.10891602]
[1731810270095,15.71,214.32,214.3,40.77071602]
[1731810270306,15.71,214.32,214.3,45.43691602]
[1731810270685,15.71,214.32,214.3,40.77071602]
[1731810271023,15.71,214.32,214.24,4.6675]
[1731810271024,56.48071602,214.32,214.24,4.6675]
[1731810271183,56.48071602,214.32,214.25,23.776884]
[1731810271391,15.71,214.32,214.28,23.776884]
[1731810272394,15.71,214.32,214.28,28.443584]
[1731810273194,61.14671602,214.32,214.24,4.6675]
[1731810273393,20.376,214.32,214.24,4.6675]
[1731810273699,61.14671602,214.32,214.23,11.6697]
[1731810273881,0.25098,214.29,214.21,40.77071602]
[1731810274087,40.77071602,214.25,214.18,4.6688]
[1731810274293,45.43821602,214.25,214.17,16.3417]
[1731810275319,10.9819,214.26,214.18,40.77071602]
[1731810275805,6.3146,214.26,214.18,40.77071602]
[1731810276003,6.3146,214.26,214.17,16.3417]
[1731810276004,6.3146,214.26,214.19,40.782105]
[1731810276410,6.3146,214.26,214.23,40.782105]
[1731810276603,62.806705,214.32,214.23,40.782105]
[1731810277308,67.472705,214.32,214.23,40.782105]
[1731810277693,40.782105,214.3,214.19,40.782105]
[1731810277912,0.25098,214.31,214.16,16.3429]
[1731810277913,40.782105,214.26,214.16,57.125005]
[1731810278192,40.782105,214.28,214.2,40.782105]
[1731810278403,40.782105,214.28,214.21,4.6683]
[1731810278711,45.448905,214.28,214.21,4.6683]
[1731810279720,45.448905,214.28,214.19,4.6687]
[1731810279924,45.448905,214.28,214.17,4.669]
[1731810279925,40.782105,214.26,214.17,4.669]
[1731810280097,40.782105,214.24,214.17,4.669]
[1731810280505,40.782105,214.26,214.17,4.669]
[1731810280708,40.782105,214.24,214.17,4.669]
[1731810281326,45.449805,214.24,214.16,16.3429]
[1731810283229,40.782105,214.26,214.17,40.782105]
[1731810283517,0.35098,214.31,214.11,23.3514]
[1731810283518,40.782105,214.22,214.13,40.782105]
[1731810284101,40.782105,214.18,214.0,23.4642]
[1731810284295,0.25098,214.15,214.07,40.782105]
[1731810284500,0.25098,214.15,214.03,11.6806]
[1731810284501,40.782105,214.14,214.05,40.782105]
[1731810284716,40.782105,214.12,214.03,52.462705]
[1731810284923,25.13486535,214.12,214.03,36.81546535]
[1731810285123,0.25098,214.15,214.07,25.13486535]
[1731810285423,29.80466535,214.14,214.05,29.80656535]
[1731810285608,25.13486535,214.12,214.03,41.48746535]
[1731810286811,4.6704,214.11,214.03,16.3526]
[1731810287332,4.6704,214.11,214.03,11.6806]
[1731810288206,4.6704,214.11,214.03,16.3528]
[1731810288502,40.84645715,214.12,214.04,40.84645715]
[1731810288700,4.6689,214.18,214.1,40.84645715]
[1731810288902,26.2908,214.2,214.12,40.84645715]
[1731810289103,21.6222,214.2,214.14,40.84645715]
[1731810289302,21.6222,214.2,214.16,40.84645715]
[1731810289533,67.1025261,214.3,214.19,40.7896261]
[1731810289713,67.1025261,214.3,214.2,40.7896261]
[1731810289904,40.7896261,214.28,214.2,40.7896261]
[1731810290330,40.7896261,214.26,214.16,40.7896261]
[1731810290504,40.7896261,214.2,214.12,40.7896261]
[1731810290721,40.7896261,214.22,214.13,4.67]
[1731810291120,40.7896261,214.26,214.16,40.7896261]
[1731810291640,21.6464,214.3,214.22,40.7896261]
[1731810292003,26.3128,214.3,214.2,40.7896261]
[1731810292204,40.7896261,214.29,214.2,40.7896261]
[1731810292815,40.7896261,214.26,214.18,11.672]
[1731810293010,40.7896261,214.24,214.16,45.4588261]
[1731810293210,40.7896261,214.26,214.16,57.1323261]
[1731810293821,4.6667,214.28,214.08,40.7896261]
[1731810293822,40.7896261,214.17,214.08,11.6773]
[1731810294026,40.7896261,214.15,214.06,40.7896261]
[1731810294525,40.7896261,214.13,214.04,52.4696261]
[1731810294730,4.6702,214.12,214.02,45.4619261]
[1731810296009,40.7896261,214.11,214.03,23.776884]
[1731810296411,40.7896261,214.11,214.02,57.1430261]
[1731810296606,40.7896261,214.09,214.02,11.6811]
[1731810296824,40.7896261,214.07,214.02,11.6811]
[1731810297111,40.7896261,214.07,214.0,4.6727]
[1731810297715,40.7896261,214.07,213.99,0.5237805]
[1731810298215,21.6464,214.09,213.99,57.6691066]
[1731810298216,40.7896261,214.08,213.99,57.6691066]
[1731810299026,21.6464,214.09,214.01,40.7896261]
[1731810300034,21.6464,214.09,214.02,4.6724]
[1731810300226,21.6464,214.09,214.03,40.7896261]
[1731810300529,15.1234,214.09,214.03,40.7896261]
[1731810300839,15.1234,214.09,214.02,16.3535]
[1731810301911,15.1234,214.09,214.05,40.7896261]
[1731810302112,40.7896261,214.12,214.0,20.0]
[1731810302325,40.7896261,214.12,214.02,43.776884]
[1731810302914,16.0601,214.16,214.1,40.7896261]
[1731810303124,6.2252,214.22,214.15,40.7896261]
[1731810303447,40.7896261,214.2,214.11,60.7896261]
[1731810304113,40.7896261,214.2,214.12,16.3458]
[1731810305414,15.3139,214.23,214.19,40.7896261]
[1731810305608,47.0148261,214.28,214.21,40.7896261]
[1731810305609,6.2252,214.28,214.21,40.7896261]
[1731810305846,6.2252,214.28,214.23,40.7896261]
[1731810306015,15.3139,214.3,214.24,23.776884]
[1731810307545,15.3139,214.3,214.25,16.336]
[1731810308336,15.3139,214.3,214.23,40.7896261]
[1731810308512,56.1035261,214.3,214.21,40.7896261]
[1731810309141,15.3139,214.3,214.25,40.7896261]
[1731810309440,15.3139,214.3,214.11,0.6477]
[1731810309630,40.7896261,214.22,214.13,4.67]
[1731810310143,19.9803,214.3,214.06,40.7896261]
[1731810310144,40.7896261,214.14,214.06,40.7896261]
[1731810310322,40.7896261,214.12,214.05,4.6718]
[1731810310527,15.3632,214.16,214.03,11.6804]
[1731810310528,0.12549,214.09,214.03,11.6804]
[1731810310914,0.12549,214.09,214.03,16.3526]
[1731810311147,40.7896261,214.14,214.04,40.7896261]
[1731810311322,0.12549,214.13,214.04,40.7896261]
[1731810311523,0.12549,214.13,214.05,16.3513]
[1731810312645,0.12549,214.13,214.06,23.776884]
[1731810312852,56.1528261,214.16,214.09,43.776884]
[1731810313064,15.3632,214.16,214.11,23.776884]
[1731810313341,16.2344,214.23,214.15,43.776884]
[1731810313815,16.2344,214.23,214.16,16.3429]
[1731810314249,16.2344,214.23,214.18,40.7896261]
[1731810314540,6.0178,214.25,214.18,40.7896261]
[1731810315542,40.7896261,214.22,214.16,16.3429]
[1731810315950,0.12549,214.23,214.16,16.3429]
[1731810316654,0.12549,214.24,214.18,23.776884]
[1731810317140,6.0178,214.25,214.18,23.776884]
[1731810317349,40.7896261,214.26,214.18,23.776884]
[1731810318255,40.7896261,214.26,214.16,11.6735]
[1731810318256,0.12549,214.2,214.16,11.6735]
[1731810318728,0.12549,214.2,214.14,4.6697]
[1731810318926,0.12549,214.2,214.04,5.2713]
[1731810319149,0.12549,214.09,214.02,40.7896261]
[1731810319455,40.7896261,214.06,214.0,11.6818]
[1731810319747,0.12549,214.05,214.0,11.6818]
[1731810320349,0.12549,214.05,214.0,16.3546]
[1731810320854,0.12549,214.07,214.0,16.3546]
[1731810321227,0.12549,214.09,214.02,40.7896261]
[1731810321426,22.2522,214.16,214.0,16.3546]
[1731810321427,0.12549,214.11,214.04,40.7896261]
[1731810321742,0.12549,214.11,214.02,40.7896261]
[1731810321927,0.12549,214.11,214.03,23.776884]
[1731810322349,0.12549,214.11,214.04,36.352]
[1731810322551,4.79599,214.11,214.02,4.6723]
[1731810322867,0.12549,214.09,214.01,40.7896261]
[1731810323163,0.12549,214.09,214.02,16.3535]
[1731810323365,0.12549,214.11,214.02,16.3535]
[1731810323565,40.7896261,214.1,214.02,16.3535]
[1731810323865,0.12549,214.09,214.02,16.3535]
[1731810324462,0.12549,214.07,214.02,11.6811]
[1731810325241,40.7896261,214.13,214.03,40.7896261]
[1731810325661,40.7896261,214.13,214.04,23.776884]
[1731810326137,22.2522,214.16,214.1,23.776884]
[1731810326340,22.2522,214.16,214.11,4.6704]
[1731810326750,22.2522,214.16,214.11,16.3466]
[1731810327139,16.2344,214.16,214.11,57.1362261]
[1731810327641,40.7896261,214.13,214.03,40.7896261]
[1731810327844,40.7896261,214.11,214.01,77.1438261]
[1731810328059,0.12549,214.1,214.01,77.1438261]
[1731810328258,16.2344,214.16,214.09,40.7896261]
[1731810328460,16.2344,214.16,214.12,40.7896261]
[1731810329366,16.2344,214.16,214.06,40.7896261]
[1731810329547,0.12549,214.13,214.04,57.1416261]
[1731810329747,0.12549,214.11,214.04,57.1416261]
[1731810330549,40.7896261,214.14,214.04,57.1416261]
[1731810330856,0.12549,214.15,214.08,40.7896261]
[1731810331055,16.2344,214.16,214.08,40.7896261]
[1731810331241,16.2344,214.16,214.05,23.776884]
[1731810331242,16.2344,214.16,214.1,40.7896261]
[1731810331668,16.2344,214.16,214.12,40.7896261]